fUSD/lending_fUSD_20240325
["ID","MTS","AMOUNT","RATE_DAILY","PERIOD"]
[320360368,1711331431991,-128.86115519,0.00015674,2]
[320360369,1711331432023,-275.07009327,0.00015674,2]
[320360370,1711331432033,-553.0,0.00015675,2]
[320360371,1711331432042,-155.0,0.00015675,2]
[320360372,1711331432051,-155.0,0.00015675,2]
[320360373,1711331432062,-294.76483047,0.00015676,2]
[320360374,1711331432071,-783.91071464,0.00015677,2]
[320360375,1711331432081,-193.74052662,0.00015678,2]
[320360376,1711331432090,-910.0,0.00015684,2]
[320360377,1711331432099,-250.0,0.00015721,2]
[320360378,1711331432108,-2115.56,0.00015729,2]
[320360379,1711331432118,-250.0,0.0001574,2]
[320360380,1711331432127,-500.0,0.00015766,2]
[320360381,1711331432136,-500.0,0.00015771,2]
[320360382,1711331432149,-150.0,0.00015776,2]
[320360383,1711331432159,-8437.8036103,0.00015777,2]
[320360384,1711331432207,-15462.1963897,0.00015777,2]
[320360385,1711331432217,-296.84,0.00015778,2]
[320360386,1711331432227,-150.99,0.00015778,2]
[320360387,1711331432238,-499.99,0.00015778,2]
[320360388,1711331432248,-10000.0,0.00015799,2]
[320360389,1711331432258,-190.36,0.00015809,2]
[320360390,1711331432267,-176.25,0.00015824,2]
[320360391,1711331432277,-150.0,0.00016064,2]
[320360392,1711331432287,-537.18683001,0.00016153,2]
[320360393,1711331432297,-2929.34392934,0.00016176,2]
[320360394,1711331432306,-6229.77215797,0.00016176,2]
[320360395,1711331432316,-181.4,0.00016176,2]
[320360396,1711331432325,-150.99,0.00016176,2]
[320360397,1711331432335,-21959.46738662,0.00016178,2]
[320360398,1711331432345,-748.35828917,0.00016179,2]
[320360399,1711331432354,-522.9,0.00016189,2]
[320360400,1711331432365,-250.0,0.00016438,2]
[320360401,1711331432374,-166.98,0.00016599,2]
[320360402,1711331432383,-176.37,0.0001671,2]
[320360403,1711331432392,-166.98,0.00016765,2]
[320360404,1711331432402,-166.98,0.00016931,2]
[320360405,1711331432411,-1712.3023526,0.00016973,2]
[320360406,1711331432420,-210.0,0.00017354,2]
[320360407,1711331432429,-150.0,0.00017545,2]
[320360408,1711331432439,-500.0,0.000176,6]
[320360409,1711331432448,-910.0,0.00017645,2]
[320360410,1711331432457,-6851.0002,0.00017698,2]
[320360411,1711331432467,-208.6595,0.00017698,2]
[320360412,1711331432476,-431.9221,0.00017698,2]
[320360413,1711331432485,-307.5607,0.000177,2]
[320360414,1711331432494,-1100.0,0.000177,6]
[320360415,1711331432504,-1908.2011,0.000177,2]
[320360416,1711331432513,-150.0,0.00017752,2]
[320360417,1711331432523,-190.36,0.00017785,2]
[320360418,1711331432533,-395.29885688,0.00017794,2]
[320360419,1711331432542,-1495.46422196,0.00017798,2]
[320360420,1711331432552,-58488.3707162,0.00017798,2]
[320360421,1711331432562,-176.94442168,0.00017798,2]
[320360422,1711331432572,-55153.93023001,0.000178,2]
[320360435,1711331438006,-925.30673529,0.000178,2]
[320360436,1711331438018,-387.33886803,0.000178,2]
[320360437,1711331438118,-1900.0,0.000178,2]
[320360438,1711331438129,-6946.81788458,0.000178,2]
[320360439,1711331438196,-484.5265281,0.000178,2]
[320360440,1711331438207,-558.64119013,0.000178,2]
[320360441,1711331438244,-6062.9094044,0.000178,2]
[320360442,1711331438297,-509.08238872,0.000178,2]
[320360444,1711331439936,-514.63207778,0.000178,2]
[320360445,1711331439998,-699.74385355,0.000178,2]
[320360446,1711331440011,-6320.83521,0.000178,2]
[320360447,1711331440027,-949.90012243,0.000178,2]
[320360448,1711331440080,-3300.28610823,0.000178,2]
[320360449,1711331440121,-1736.41306025,0.000178,2]
[320360450,1711331440132,-2001.07169807,0.000178,2]
[320360451,1711331440143,-956.59263826,0.000178,2]
[320360452,1711331440209,-514.39854547,0.000178,2]
[320360453,1711331440260,-5114.10009646,0.000178,2]
[320360454,1711331440387,-1404.33864976,0.000178,2]
[320360455,1711331440403,-521.81754638,0.000178,2]
[320360456,1711331440424,-500.92798811,0.000178,2]
[320360470,1711331443196,-625.81698449,0.000178,2]
[320360471,1711331443208,-392.347002,0.000178,2]
[320360472,1711331443263,-2643.37518723,0.000178,2]
[320360473,1711331443275,-796.75772232,0.000178,2]
[320360474,1711331443335,-1794.19159594,0.000178,2]
[320360475,1711331443347,-780.38096398,0.000178,2]
[320360476,1711331443358,-12847.15241979,0.000178,2]
[320360477,1711331443370,-5402.47893862,0.000178,2]
[320360478,1711331443398,-21094.54107129,0.000178,2]
[320360479,1711331443412,-1008.29749762,0.000178,2]
[320360480,1711331443425,-1312.62137793,0.000178,2]
[320360481,1711331443443,-11957.97112576,0.000178,2]
[320360482,1711331443453,-395.29885688,0.000178,2]
[320360483,1711331443462,-13903.6230057,0.000178,2]
[320360484,1711331443474,-744.02450637,0.000178,2]
[320360485,1711331443486,-1280.42517282,0.000178,2]
[320360486,1711331443520,-444.82588842,0.000178,2]
[320360487,1711331443531,-54485.03241126,0.000178,2]
[320360488,1711331443543,-1091.87437716,0.000178,2]
[320360489,1711331443554,-3195.93410649,0.000178,2]
[320360490,1711331443574,-486.91192548,0.000178,2]
[320360491,1711331443586,-944.3599996,0.000178,2]
[320360492,1711331443626,-300.175,0.000178,2]
[320360493,1711331443638,-3972.09929284,0.000178,2]
[320360494,1711331443650,-763.38726959,0.000178,2]
[320360508,1711331446102,-28227.36334427,0.000178,2]
[320360510,1711331446112,-1700.0,0.000178,6]
[320360512,1711331446122,-30241.05773426,0.00017804,2]
[320360514,1711331446131,-137039.34873107,0.00017807,2]
[320360516,1711331446145,-1589.27451873,0.00017807,2]
[320360517,1711331446157,-8776.73454932,0.00017807,2]
[320360518,1711331446169,-16604.05736243,0.00017807,2]
[320360519,1711331446193,-2218.45898703,0.00017807,2]
[320360520,1711331446535,-7206.19486702,0.00017807,2]
[320360521,1711331446548,-10782.75868488,0.00017807,2]
[320360522,1711331446560,-17815.4776,0.00017807,2]
[320360523,1711331446577,-934.51654593,0.00017807,2]
[320360524,1711331446629,-2079.49302725,0.00017807,2]
[320360525,1711331446701,-8528.93497297,0.00017807,2]
[320360526,1711331592559,151.0,0.00021156,30]
[320360527,1711331592621,151.0,0.00020733,120]
[320360528,1711331634252,562.84880816,0.00024767,120]
[320360530,1711331675239,1563.15374045,0.00024759,30]
[320360531,1711331964491,470.61,0.00014938,2]
[320360532,1711332041494,500.0,0.000137,2]
[320360533,1711332126522,8646.59230727,0.00024762,30]
[320360534,1711332189624,151.0,0.00021407,30]
[320360535,1711332189694,151.0,0.00020979,120]
[320360536,1711332391715,447.07,0.00014763,2]
[320360537,1711332422364,1489641.17030991,0.00024762,30]
[320360553,1711332565066,190.36,0.00024963,120]
[320360574,1711332632279,-530.77939037,0.00015379,2]
[320360575,1711332632289,-1409.7,0.00016575,2]
[320360576,1711332632299,-250.0,0.00016608,2]
[320360577,1711332632309,-176.25,0.00016619,2]
[320360578,1711332632318,-190.36,0.00016642,2]
[320360579,1711332632327,-702.5,0.00016645,2]
[320360580,1711332632339,-80.47898915,0.00016645,2]
[320360581,1711332632386,-506.64101085,0.00016645,2]
[320360582,1711332632395,-296.84,0.00016675,2]
[320360583,1711332632404,-250.0,0.00016759,2]
[320360584,1711332632414,-364.30529568,0.00016759,2]
[320360585,1711332632443,-181.69470432,0.00016759,2]
[320360586,1711332632452,-176.37,0.00016784,2]
[320360587,1711332632460,-454.0,0.00016927,2]
[320360588,1711332632470,-287.57053201,0.00017,2]
[320360637,1711332638144,-13.69107076,0.00017,2]
[320360639,1711332638154,-447.07,0.00017027,2]
[320360641,1711332638164,-766.61468577,0.000172,2]
[320360643,1711332638174,-5435.62424347,0.00017362,2]
[320360653,1711332638259,-1775.9,0.00017362,2]
[320360662,1711332638329,-20564.4955334,0.00017362,2]
[320360667,1711332638382,-3956.56853281,0.00017362,2]
[320360669,1711332638395,-736.92304606,0.00017362,2]
[320360674,1711332638435,-5068.48743834,0.00017362,2]
[320360676,1711332638448,-55024.11760378,0.00017362,2]
[320360678,1711332638458,-525.09,0.0001744,2]
[320360680,1711332638467,-421.86,0.0001744,2]
[320360682,1711332638479,-415.44,0.0001744,2]
[320360684,1711332638488,-517.37,0.0001744,2]
[320360685,1711332638497,-204.51,0.0001744,2]
[320360687,1711332638507,-515.32,0.0001744,2]
[320360690,1711332638517,-517.37,0.000175,2]
[320360692,1711332638527,-415.44,0.000175,2]
[320360694,1711332638536,-161.29,0.000175,2]
[320360697,1711332638546,-517.37,0.000175,2]
[320360699,1711332638556,-415.44,0.000175,2]
[320360701,1711332638566,-161.29,0.000175,2]
[320360703,1711332638576,-517.37,0.000175,2]
[320360705,1711332638586,-415.44,0.000175,2]
[320360707,1711332638596,-160.69,0.000175,2]
[320360709,1711332638606,-517.37,0.000175,2]
[320360711,1711332638616,-415.44,0.000175,2]
[320360713,1711332638626,-517.37,0.000175,2]
[320360715,1711332638636,-415.44,0.000175,2]
[320360717,1711332638650,-305.38,0.000176,2]
[320360719,1711332638661,-163.84,0.000176,2]
[320360721,1711332638672,-400.0,0.000176,6]
[320360723,1711332638682,-28877.8155,0.000177,2]
[320360726,1711332638693,-900.0,0.000177,6]
[320360728,1711332638703,-3000.0,0.0001771,2]
[320360730,1711332638713,-3000.0,0.0001778,2]
[320360732,1711332638723,-683.09947433,0.00017797,2]
[320360734,1711332638735,-6614.83224469,0.00017797,2]
[320360736,1711332638745,-422.599,0.00017799,2]
[320360738,1711332638756,-807.83578641,0.000178,2]
[320360740,1711332638766,-1000.0,0.000178,2]
[320360741,1711332638776,-1336.03800696,0.000178,2]
[320360743,1711332638786,-1400.0,0.000178,6]
[320360745,1711332638796,-218.21635195,0.000178,2]
[320360747,1711332638807,-218.21635195,0.00017806,2]
[320360749,1711332638817,-1252.45128589,0.00017807,2]
[320360752,1711332638827,-3000.0,0.00017807,2]
[320360754,1711332638837,-3000.0,0.00017807,2]
[320360755,1711332638847,-1184.81286667,0.00017807,2]
[320360758,1711332638861,-1815.18713333,0.00017807,2]
[320360760,1711332638871,-683.09947433,0.00017808,2]
[320360762,1711332638881,-330.74161232,0.00017811,2]
[320360764,1711332638891,-30245.7029945,0.00017812,2]
[320360774,1711332638979,-5015.92869596,0.00017812,2]
[320360788,1711332640192,-890.15679592,0.00017812,2]
[320360789,1711332640251,-96144.85640558,0.00017812,2]
[320360790,1711332640260,-476.42869117,0.00017817,2]
[320360791,1711332640273,-733.881,0.00017817,2]
[320360792,1711332640284,-42.14159472,0.00017817,2]
[320360793,1711332640294,-343.99840526,0.00017817,2]
[320360794,1711332640327,-515.99165292,0.00017817,2]
[320360795,1711332640364,-1240.27959443,0.00017817,2]
[320360796,1711332640374,-1700.68429506,0.00017818,2]
[320360797,1711332640423,-895.680025,0.00017818,2]
[320360798,1711332640533,-385.33,0.00017818,2]
[320360809,1711332643783,-664.45,0.00017818,2]
[320360810,1711332643807,-385.67450172,0.00017818,2]
[320360811,1711332643819,-2760.98679896,0.00017818,2]
[320360812,1711332643832,-18007.59454922,0.00017818,2]
[320360813,1711332643844,-10487.58363503,0.00017818,2]
[320360814,1711332643856,-1414.91982816,0.00017818,2]
[320360815,1711332643884,-432.16,0.00017818,2]
[320360816,1711332643899,-1060.29290274,0.00017818,2]
[320360817,1711332643910,-849.9862,0.00017818,2]
[320360818,1711332643934,-779.80874953,0.00017818,2]
[320360819,1711332643961,-2951.52100116,0.00017818,2]
[320360830,1711332646259,-320.87397412,0.00017818,2]
[320360831,1711332646394,-89199.09843126,0.00017818,2]
[320360832,1711332646404,-400.54296017,0.00017819,2]
[320360833,1711332646415,-6614.83224469,0.00017819,2]
[320360834,1711332646426,-1252.45128589,0.00017823,2]
[320360835,1711332646436,-2100.26965261,0.00017826,2]
[320360836,1711332646445,-330.74161232,0.00017827,2]
[320360837,1711332646455,-2100.26965261,0.00017827,2]
[320360838,1711332646464,-3967.7748091,0.00017837,2]
[320360839,1711332646592,-2647.05743559,0.00017837,2]
[320360840,1711332646602,-683.09947433,0.0001784,2]
[320360841,1711332646611,-400.54296017,0.00017842,2]
[320360842,1711332646621,-807.83578641,0.00017843,2]
[320360843,1711332646630,-16156.7157264,0.00017845,2]
[320360844,1711332646639,-807.83578641,0.00017846,2]
[320360845,1711332646649,-55026.64810353,0.00017851,2]
[320360846,1711332646661,-12748.14050002,0.00017851,2]
[320360847,1711332646683,-38733.471502,0.00017851,2]
[320360848,1711332646694,-5895.72528088,0.00017851,2]
[320360849,1711332744946,604.72,0.00016957,4]
[320360850,1711332938611,459.39,0.00014451,2]
[320360851,1711333044910,201.07005425,0.00014379,2]
[320360854,1711333521847,436.42,0.00014195,2]
[320360859,1711333660592,500.0,0.000137,2]
[320360908,1711333832295,-155.0,0.00016049,2]
[320360909,1711333832307,-523.13488739,0.0001605,2]
[320360910,1711333832317,-171.98992029,0.00016059,2]
[320360911,1711333832330,-200.0,0.00016062,2]
[320360912,1711333832341,-662.03839232,0.00016066,2]
[320360914,1711333832531,-955.00000001,0.00016066,2]
[320360915,1711333832622,-792.5901174,0.00016066,2]
[320360916,1711333832635,-2290.13160082,0.00016066,2]
[320360917,1711333832645,-250.0,0.00016067,2]
[320360918,1711333832655,-294.3,0.00016096,2]
[320360919,1711333832666,-150.0,0.00016118,2]
[320360920,1711333832677,-563.2,0.00016119,2]
[320360921,1711333832689,-1997.6,0.00016119,2]
[320360922,1711333832700,-1906.08,0.00016159,2]
[320360923,1711333832714,-187.59,0.00016159,2]
[320360924,1711333832726,-1182.06,0.00016216,2]
[320360925,1711333832736,-9999.99,0.00016231,2]
[320360926,1711333832752,-436.8,0.00016234,2]
[320360927,1711333832763,-4837.19,0.00016251,2]
[320360928,1711333832775,-177.5,0.00016333,2]
[320360929,1711333832787,-409.41,0.00016398,2]
[320360930,1711333832797,-200.51354696,0.00016438,2]
[320360931,1711333832808,-250.0,0.00016438,2]
[320360932,1711333832818,-436.42,0.00016459,2]
[320360933,1711333832828,-19829.4310724,0.00016536,2]
[320360934,1711333832848,-1416.1289276,0.00016536,2]
[320360935,1711333832858,-175.55,0.00016617,2]
[320360936,1711333832868,-161.58,0.0001666,2]
[320360937,1711333832878,-161.58,0.00016739,2]
[320360938,1711333832888,-161.58,0.00016818,2]
[320360940,1711333832899,-156.79,0.00016842,2]
[320360942,1711333832908,-156.79,0.00016868,2]
[320360943,1711333832919,-168.4,0.00016875,2]
[320360944,1711333832928,-156.79,0.00016894,2]
[320360945,1711333832940,-161.58,0.00016897,2]
[320360946,1711333832952,-156.79,0.0001692,2]
[320360948,1711333832962,-156.79,0.00016946,2]
[320360950,1711333832971,-156.79,0.00016971,2]
[320360952,1711333832982,-161.58,0.00016976,2]
[320360954,1711333832991,-171.98992028,0.0001698,2]
[320360955,1711333833001,-156.79,0.00016997,2]
[320360956,1711333833010,-50.73775147,0.00017,2]
[320360957,1711333833028,-2460.68199843,0.00017,2]
[320360958,1711333833038,-156.79,0.00017023,2]
[320360959,1711333833048,-156.79,0.00017049,2]
[320360960,1711333833060,-161.58,0.00017055,2]
[320360961,1711333833070,-156.79,0.00017075,2]
[320360962,1711333833080,-156.79,0.00017101,2]
[320360963,1711333833091,-156.79,0.00017127,2]
[320360964,1711333833101,-161.58,0.00017134,2]
[320360965,1711333833111,-156.79,0.00017153,2]
[320360966,1711333833121,-1131.01182456,0.00017171,2]
[320360967,1711333833133,-156.79,0.00017179,2]
[320360968,1711333833143,-161.58,0.00017212,2]
[320360969,1711333833154,-161.58,0.00017291,2]
[320360970,1711333833164,-161.58,0.0001737,2]
[320360971,1711333833174,-161.58,0.00017449,2]
[320360972,1711333833185,-500.30891208,0.000175,2]
[320360973,1711333833195,-161.58,0.00017528,2]
[320360974,1711333833204,-317.967113,0.00017534,2]
[320360975,1711333833214,-220.66,0.00017574,2]
[320360976,1711333833223,-150.0,0.00017574,2]
[320360977,1711333833233,-150.0,0.00017574,2]
[320360978,1711333833242,-300.0,0.00017574,2]
[320360979,1711333833252,-300.0,0.000176,6]
[320360980,1711333833262,-1864.86681474,0.0001767,2]
[320360981,1711333833274,-393.9,0.0001767,2]
[320360982,1711333833294,-741.23318526,0.0001767,2]
[320360983,1711333833304,-800.0,0.00017671,2]
[320360984,1711333833314,-600.0,0.000177,6]
[320360985,1711333833324,-366.41651499,0.00017798,2]
[320360986,1711333833333,-4585.03889186,0.00017798,2]
[320360987,1711333833343,-155.83319959,0.000178,2]
[320360988,1711333833352,-656.57830432,0.000178,2]
[320360989,1711333833365,-3615.17313625,0.000178,2]
[320360990,1711333833377,-628.78466563,0.000178,2]
[320360991,1711333833410,-3395.15,0.000178,2]
[320360992,1711333833422,-7258.7406938,0.000178,2]
[320360993,1711333833432,-100000.0,0.000178,2]
[320360994,1711333833441,-1169.03325609,0.000178,2]
[320360995,1711333833451,-1000.0,0.000178,2]
[320360996,1711333833460,-1000.0,0.000178,6]
[320360997,1711333833470,-155.0,0.00017835,2]
[320360998,1711333833479,-243.0,0.00017835,2]
[320360999,1711333833488,-158.0,0.00017835,2]
[320361000,1711333833498,-1227.637718,0.00017844,2]
[320361001,1711333833509,-6502.2134464,0.00017844,2]
[320361002,1711333833518,-10608.7943788,0.00017844,2]
[320361003,1711333833538,-147401.53585594,0.00017851,2]
[320361029,1711333838362,-8974.61047693,0.00017851,2]
[320361053,1711333838588,-54354.18280685,0.00017851,2]
[320361055,1711333838598,-566.136159,0.00017856,2]
[320361057,1711333838609,-683.09947433,0.00017857,2]
[320361059,1711333838618,-400.54296017,0.00017857,2]
[320361061,1711333838627,-132296.64489196,0.00017858,2]
[320361063,1711333838637,-6614.83224469,0.00017859,2]
[320361065,1711333838646,-330.74161232,0.00017862,2]
[320361067,1711333838655,-218.21635195,0.00017867,2]
[320361068,1711333838665,-400.54296017,0.00017868,2]
[320361069,1711333838676,-16156.7157264,0.00017869,2]
[320361070,1711333838687,-323134.31452615,0.00017875,2]
[320361071,1711333838696,-323134.31452615,0.00017875,2]
[320361072,1711333838705,-1252.45128589,0.0001788,2]
[320361073,1711333838715,-16156.7157264,0.00017881,2]
[320361075,1711333838725,-330.74161232,0.00017882,2]
[320361076,1711333838983,-218.21635195,0.00017892,2]
[320361077,1711333838993,-807.83578641,0.00017892,2]
[320361078,1711333839003,-2100.26965261,0.00017892,2]
[320361079,1711333839013,-11080.73746078,0.00017893,2]
[320361080,1711333839028,-1435.91022018,0.00017893,2]
[320361081,1711333840460,-3609.055,0.00017893,2]
[320361082,1711333840472,-31.01304544,0.00017893,2]
[320361083,1711333840481,-494.1085919,0.00017896,2]
[320361084,1711333840519,-2147.3180835,0.00017896,2]
[320361085,1711333840580,-795.6,0.00017896,2]
[320361086,1711333840593,-68597.85495652,0.00017896,2]
[320361089,1711333843292,-9811.85885809,0.00017896,2]
[320361090,1711333843304,-3358.32819693,0.00017896,2]
[320361091,1711333843447,-3774.58002791,0.00017896,2]
[320361092,1711333843460,-470.0,0.00017896,2]
[320361093,1711333843473,-562.6,0.00017896,2]
[320361094,1711333843485,-3341.77033905,0.00017896,2]
[320361095,1711333843506,-17449.0317919,0.00017896,2]
[320361096,1711333843522,-66299.45611406,0.00017896,2]
[320361097,1711333843547,-17762.77795644,0.00017896,2]
[320361098,1711333843589,-1466.79589,0.00017896,2]
[320361099,1711333843921,-2648.0340238,0.00017896,2]
[320361109,1711333847339,-251.02304297,0.00017896,2]
[320361110,1711333847351,-8933.20343514,0.00017896,2]
[320361111,1711333847363,-66401.00000002,0.00017896,2]
[320361112,1711333847374,-3270.36656277,0.00017896,2]
[320361113,1711333847385,-3215.0,0.00017896,2]
[320361114,1711333847397,-32085.68672753,0.00017896,2]
[320361115,1711333847442,-9997.91992762,0.00017896,2]
[320361116,1711333847453,-151.032509,0.00017898,2]
[320361117,1711333847462,-151.032509,0.00017898,2]
[320361118,1711333847471,-151.032509,0.00017898,2]
[320361119,1711333847481,-151.032509,0.00017898,2]
[320361120,1711333847491,-151.032509,0.00017898,2]
[320361121,1711333847501,-151.032509,0.00017898,3]
[320361122,1711333847511,-151.032509,0.00017898,3]
[320361123,1711333847520,-151.032509,0.00017898,3]
[320361124,1711333847529,-151.032509,0.00017898,3]
[320361125,1711333847541,-151.032509,0.00017898,3]
[320361126,1711333847550,-1134.5147015,0.00017898,2]
[320361127,1711333847632,-440.08632411,0.00017898,2]
[320361128,1711333960286,419.94,0.00014853,2]
[320361129,1711334013316,1670.0,0.000151,2]
[320361131,1711334028167,151.0,0.00020887,30]
[320361132,1711334028284,151.0,0.00020469,120]
[320361133,1711334270967,151.0,0.00020887,30]
[320361134,1711334271011,151.0,0.00020469,120]
[320361138,1711334547422,398.94,0.00013622,2]
[320361141,1711334719714,151.0,0.00020887,30]
[320361142,1711334719848,151.0,0.00020469,120]
[320361151,1711334980253,151.0,0.00020887,30]
[320361152,1711334980321,151.0,0.00020469,120]
[320361153,1711335006248,378.99,0.0001339,2]
[320361158,1711335031544,-178.46931499,0.00015165,2]
[320361159,1711335031554,-163.50416171,0.00015261,2]
[320361160,1711335031564,-2166.32478152,0.00015261,2]
[320361161,1711335031573,-359.35239447,0.00015262,2]
[320361162,1711335031612,-320.71133698,0.00015262,2]
[320361163,1711335031679,-155.0,0.00015263,2]
[320361164,1711335031689,-578.67451049,0.00015265,2]
[320361165,1711335031811,-34466.50272574,0.00015265,2]
[320361166,1711335031822,-10000.0,0.00015266,2]
[320361167,1711335031832,-178.75,0.00015296,2]
[320361168,1711335031842,-500.0,0.00015302,2]
[320361169,1711335031852,-200.0,0.00015324,2]
[320361170,1711335031862,-250.0,0.00015361,2]
[320361171,1711335031872,-177.5,0.00015386,2]
[320361172,1711335031882,-243.54,0.00015386,2]
[320361173,1711335031892,-855.38,0.00015397,2]
[320361174,1711335031906,-450.56,0.00015415,2]
[320361175,1711335031915,-150.0,0.00015425,2]
[320361176,1711335031924,-157.51,0.00015427,2]
[320361177,1711335031934,-250.0,0.00015434,2]
[320361178,1711335031943,-150.0,0.00015446,2]
[320361179,1711335031953,-150.0,0.00015446,2]
[320361180,1711335031964,-2892.55,0.00015448,2]
[320361181,1711335031974,-169.32,0.00015452,2]
[320361183,1711335031985,-23890.0,0.00015465,2]
[320361184,1711335031995,-1517.92,0.00015491,2]
[320361185,1711335032004,-157.51,0.00015541,2]
[320361186,1711335032016,-190.36,0.00015552,2]
[320361187,1711335032026,-378.99,0.00015654,2]
[320361188,1711335032038,-157.51,0.00015656,2]
[320361189,1711335032049,-157.51,0.00015771,2]
[320361190,1711335032060,-549.44,0.00015857,2]
[320361191,1711335032071,-157.51,0.00015886,2]
[320361192,1711335032082,-157.51,0.00016001,2]
[320361193,1711335032092,-157.51,0.00016116,2]
[320361194,1711335032104,-157.51,0.0001623,2]
[320361195,1711335032114,-568.41,0.00016271,2]
[320361196,1711335032125,-365.63,0.00016271,2]
[320361197,1711335032136,-568.41,0.00016288,2]
[320361198,1711335032147,-568.41,0.00016305,2]
[320361199,1711335032157,-150.99,0.00016322,2]
[320361200,1711335032167,-499.99,0.00016322,2]
[320361201,1711335032178,-568.41,0.00016322,2]
[320361202,1711335032192,-568.41,0.00016339,2]
[320361203,1711335032203,-568.41,0.00016356,2]
[320361204,1711335032213,-568.41,0.00016373,2]
[320361205,1711335032224,-568.41,0.00016391,2]
[320361206,1711335032234,-568.41,0.00016408,2]
[320361207,1711335032245,-568.41,0.00016425,2]
[320361208,1711335032256,-246.19676213,0.00016438,2]
[320361209,1711335032267,-250.0,0.00016438,2]
[320361210,1711335032277,-1391.09,0.00016438,2]
[320361211,1711335032288,-568.41,0.00016442,2]
[320361212,1711335032298,-568.41,0.00016459,2]
[320361213,1711335032309,-568.41,0.00016476,2]
[320361214,1711335032319,-568.41,0.00016493,2]
[320361215,1711335032329,-568.41,0.0001651,2]
[320361216,1711335032339,-178.46931497,0.00016516,2]
[320361217,1711335032350,-568.41,0.00016528,2]
[320361218,1711335032359,-568.41,0.00016545,2]
[320361219,1711335032369,-568.41,0.00016562,2]
[320361220,1711335032379,-2001.92759193,0.00016571,2]
[320361221,1711335032389,-568.41,0.00016579,2]
[320361222,1711335032401,-568.41,0.00016596,2]
[320361223,1711335032414,-224.12,0.00016613,2]
[320361224,1711335032424,-170.18,0.00016652,2]
[320361225,1711335032434,-168.16,0.00016759,2]
[320361226,1711335032444,-206.44,0.00016795,2]
[320361227,1711335032454,-168.79,0.00016862,2]
[320361228,1711335032465,-450.0,0.00017,2]
[320361229,1711335032477,-450.56,0.00017342,2]
[320361230,1711335032487,-2500.0,0.000174,2]
[320361231,1711335032497,-268.77,0.0001749,3]
[320361232,1711335032507,-861.7441,0.000175,2]
[320361233,1711335032517,-112962.7834,0.000175,2]
[320361234,1711335032527,-350.75841428,0.000175,2]
[320361235,1711335032537,-43927.76615539,0.000176,14]
[320361236,1711335032570,-5716.08527799,0.000176,14]
[320361237,1711335032582,-8303.34998947,0.000176,14]
[320361238,1711335032595,-2287.44355534,0.000176,14]
[320361239,1711335032619,-499.95,0.000176,14]
[320361240,1711335032633,-886.0,0.000176,14]
[320361241,1711335032647,-6397.19421461,0.000176,14]
[320361242,1711335032660,-833.79793316,0.000176,14]
[320361243,1711335032681,-580.7768,0.000176,14]
[320361265,1711335037514,-155.0,0.00015164,2]
[320361267,1711335037524,-6881.78301158,0.000176,14]
[320361280,1711335037640,-26908.09036246,0.000176,14]
[320361282,1711335037651,-1090.33844372,0.000176,2]
[320361284,1711335037662,-14966.4854,0.0001762,2]
[320361286,1711335037672,-3436.785,0.0001762,2]
[320361288,1711335037682,-89554.0217,0.000177,2]
[320361290,1711335037692,-1000.0,0.000177,2]
[320361292,1711335037702,-418.0691,0.000177,2]
[320361294,1711335037711,-160.60239348,0.00017719,2]
[320361296,1711335037721,-918.44608,0.0001772,2]
[320361297,1711335037732,-2506.9872853,0.00017721,2]
[320361299,1711335037742,-201.399859,0.00017773,2]
[320361301,1711335037751,-216.33171323,0.00017788,2]
[320361303,1711335037760,-180.5565254,0.0001779,2]